[Event "Wch u20 girls"]
[Site "Kocaeli"]
[Date "2013.09.23"]
[Round "10.21"]
[White "Karabayeva, Zhanna"]
[Black "Saranya, J."]
[Result "0-1"]
[ECO "B23"]
[WhiteElo "2029"]
[BlackElo "2094"]
[PlyCount "66"]
[EventDate "2013.09.??"]
[EventType "swiss"]
[EventRounds "13"]
[EventCountry "TUR"]
[Source "CBase R.Goldau"]
[SourceDate "2000.03.01"]
[TimeControl "40/5400+30:1800+30"]

1. e4 {[%emt 0:00:30]} c5 {[%emt 0:00:30]} 2. Nc3 {[%emt 0:00:00]} d6 {[%emt 0:
00:30]} 3. f4 {[%emt 0:00:00]} Nc6 {[%emt 0:00:30]} 4. Bb5 {[%emt 0:00:00]} Bd7
{[%emt 0:00:30]} 5. Bxc6 {[%emt 0:00:00]} Bxc6 {[%emt 0:00:30]} 6. Nf3 {[%emt
0:00:30]} g6 {[%emt 0:00:30]} 7. O-O {[%emt 0:00:00]} Bg7 {[%emt 0:00:30]} 8.
d3 {[%emt 0:00:00]} Qc7 {[%emt 0:01:30]} 9. Qe1 {[%emt 0:03:30]} O-O-O {[%emt
0:02:30]} 10. Rb1 {[%emt 0:21:30]} e6 {[%emt 0:08:30]} 11. b4 {[%emt 0:05:30]}
cxb4 {[%emt 0:00:30]} 12. Rxb4 {[%emt 0:00:30]} d5 {[%emt 0:02:30]} 13. e5 {
[%emt 0:01:30]} Bf8 {[%emt 0:03:30]} 14. Rb1 {[%emt 0:03:30]} Bc5+ {[%emt 0:05:
30]} 15. Kh1 {[%emt 0:07:30]} Nh6 {[%emt 0:01:30]} 16. d4 {[%emt 0:07:30]} Bb6
{[%emt 0:03:30]} 17. Nb5 {[%emt 0:10:30]} Bxb5 {[%emt 0:00:30]} 18. Rxb5 {
[%emt 0:00:00]} Nf5 {[%emt 0:01:30]} 19. c3 {[%emt 0:05:00]} h5 {[%emt 0:01:30]
} 20. Ba3 {[%emt 0:00:30]} a6 {[%emt 0:01:30]} 21. Rb3 {[%emt 0:00:30]} h4 {
[%emt 0:02:30]} 22. Kg1 {[%emt 0:02:30]} Ba7 {[%emt 0:02:30]} 23. Rf2 {[%emt 0:
02:30]} Rd7 {[%emt 0:04:30]} 24. Rfb2 {[%emt 0:04:30]} Qc6 {[%emt 0:00:30]} 25.
Qf2 {[%emt 0:00:30]} Kb8 {[%emt 0:03:30]} 26. Ne1 {[%emt 0:03:30]} Qc4 {[%emt
0:03:30]} 27. Bc5 {[%emt 0:05:39]} Bxc5 {[%emt 0:02:30]} 28. dxc5 {[%emt 0:00:
03]} Rc8 {[%emt 0:01:30]} 29. Kh1 {[%emt 0:04:00]} Qxc5 {[%emt 0:00:30]} 30.
Qe2 {[%emt 0:00:53]} Ng3+ {[%emt 0:01:30]} 31. hxg3 {[%emt 0:00:19]} hxg3 {
[%emt 0:00:30]} 32. Qg4 {[%emt 0:00:58]} Rh8+ {[%emt 0:03:30]} 33. Qh3 {[%emt
0:00:00]} Qe3 {[%emt 0:00:00]} 0-1

[Event "Wch u20 girls"]
[Site "Kocaeli"]
[Date "2013.09.23"]
[Round "10.22"]
[White "Iwanow, Anna"]
[Black "Anu, Bayar"]
[Result "1-0"]
[ECO "B38"]
[WhiteElo "2210"]
[BlackElo "2012"]
[PlyCount "67"]
[EventDate "2013.09.??"]
[EventType "swiss"]
[EventRounds "13"]
[EventCountry "TUR"]
[Source "CBase R.Goldau"]
[SourceDate "2000.03.01"]
[TimeControl "40/5400+30:1800+30"]

1. e4 {[%emt 0:00:30]} c5 {[%emt 0:00:30]} 2. Nf3 {[%emt 0:00:00]} g6 {[%emt 0:
00:00]} 3. d4 {[%emt 0:00:00]} cxd4 {[%emt 0:00:00]} 4. Nxd4 {[%emt 0:00:30]}
Bg7 {[%emt 0:00:00]} 5. c4 {[%emt 0:00:00]} Nc6 {[%emt 0:00:00]} 6. Be3 {[%emt
0:01:00]} Nf6 {[%emt 0:01:30]} 7. Nc3 {[%emt 0:00:00]} d6 {[%emt 0:00:30]} 8.
Be2 {[%emt 0:00:00]} O-O {[%emt 0:01:30]} 9. O-O {[%emt 0:00:30]} a5 {[%emt 0:
04:30]} 10. Kh1 {[%emt 0:03:30]} Nd7 {[%emt 0:01:30]} 11. Ndb5 {[%emt 0:07:30]}
b6 {[%emt 0:06:30]} 12. Qd2 {[%emt 0:08:30]} Nc5 {[%emt 0:02:30]} 13. Rad1 {
[%emt 0:02:30]} Be6 {[%emt 0:09:30]} 14. Bh6 {[%emt 0:07:30]} Ne5 {[%emt 0:05:
30]} 15. Bxg7 {[%emt 0:00:00]} Kxg7 {[%emt 0:00:30]} 16. f4 {[%emt 0:01:00]}
Nc6 {[%emt 0:02:30]} 17. f5 {[%emt 0:05:30]} Bc8 {[%emt 0:06:30]} 18. f6+ {
[%emt 0:03:30]} exf6 {[%emt 0:01:30]} 19. Nxd6 {[%emt 0:01:30]} Be6 {[%emt 0:
02:30]} 20. Qf4 {[%emt 0:10:30]} Qe7 {[%emt 0:02:30]} 21. Nd5 {[%emt 0:07:30]}
Bxd5 {[%emt 0:00:30]} 22. exd5 {[%emt 0:00:30]} Ne5 {[%emt 0:04:30]} 23. Nb5 {
[%emt 0:00:30]} Ned7 {[%emt 0:02:30]} 24. Bf3 {[%emt 0:03:30]} Qe5 {[%emt 0:02:
30]} 25. Qd2 {[%emt 0:01:30]} Ne4 {[%emt 0:07:30]} 26. Bxe4 {[%emt 0:02:30]}
Qxe4 {[%emt 0:00:00]} 27. Rf4 {[%emt 0:03:30]} Qe7 {[%emt 0:09:00]} 28. d6 {
[%emt 0:04:30]} Qe5 {[%emt 0:00:30]} 29. Qf2 {[%emt 0:06:32]} Rae8 {[%emt 0:02:
30]} 30. Nc7 {[%emt 0:02:26]} Qe2 {[%emt 0:01:30]} 31. Nxe8+ {[%emt 0:00:33]}
Rxe8 {[%emt 0:00:30]} 32. Qxe2 {[%emt 0:03:34]} Rxe2 {[%emt 0:00:00]} 33. Kg1 {
[%emt 0:01:39]} Rxb2 {[%emt 0:01:00]} 34. Re4 {[%emt 0:00:14]} 1-0

[Event "Wch u20 girls"]
[Site "Kocaeli"]
[Date "2013.09.23"]
[Round "10.23"]
[White "Firat, Deniz"]
[Black "Juhasz, Barbara"]
[Result "0-1"]
[ECO "E69"]
[WhiteElo "1664"]
[BlackElo "2169"]
[PlyCount "116"]
[EventDate "2013.09.??"]
[EventType "swiss"]
[EventRounds "13"]
[EventCountry "TUR"]
[Source "CBase R.Goldau"]
[SourceDate "2000.03.01"]
[TimeControl "40/5400+30:1800+30"]

1. d4 {[%emt 0:00:30]} Nf6 {[%emt 0:00:30]} 2. c4 {[%emt 0:00:00]} g6 {[%emt 0:
00:00]} 3. Nf3 {[%emt 0:00:00]} Bg7 {[%emt 0:00:00]} 4. g3 {[%emt 0:00:00]} O-O
{[%emt 0:00:00]} 5. Bg2 {[%emt 0:00:00]} d6 {[%emt 0:00:00]} 6. O-O {[%emt 0:
00:00]} Nbd7 {[%emt 0:00:30]} 7. Nc3 {[%emt 0:00:00]} e5 {[%emt 0:00:00]} 8. e4
{[%emt 0:00:30]} c6 {[%emt 0:00:00]} 9. h3 {[%emt 0:00:00]} Qb6 {[%emt 0:00:00]
} 10. Re1 {[%emt 0:00:00]} exd4 {[%emt 0:00:00]} 11. Nxd4 {[%emt 0:00:00]} Re8
{[%emt 0:00:30]} 12. Re2 {[%emt 0:00:00]} Qb4 {[%emt 0:00:30]} 13. Rc2 {[%emt
0:00:30]} Nc5 {[%emt 0:00:30]} 14. f3 {[%emt 0:18:30]} a5 {[%emt 0:19:30]} 15.
Be3 {[%emt 0:09:30]} a4 {[%emt 0:05:30]} 16. Rb1 {[%emt 0:14:30]} Ne6 {[%emt 0:
15:30]} 17. b3 {[%emt 0:07:30]} axb3 {[%emt 0:06:30]} 18. axb3 {[%emt 0:03:30]}
Nh5 {[%emt 0:01:30]} 19. g4 {[%emt 0:05:30]} Nhf4 {[%emt 0:05:30]} 20. Nxe6 {
[%emt 0:02:30]} Nxe6 {[%emt 0:00:30]} 21. Na4 {[%emt 0:02:30]} Bd4 {[%emt 0:04:
30]} 22. Bxd4 {[%emt 0:04:30]} Nxd4 {[%emt 0:00:30]} 23. Qxd4 {[%emt 0:00:30]}
Rxa4 {[%emt 0:00:00]} 24. Rbb2 {[%emt 0:06:30]} Ra3 {[%emt 0:07:00]} 25. Rc3 {
[%emt 0:03:30]} Qc5 {[%emt 0:03:30]} 26. Qxc5 {[%emt 0:04:37]} dxc5 {[%emt 0:
00:30]} 27. f4 {[%emt 0:00:32]} Rd8 {[%emt 0:00:30]} 28. Kf2 {[%emt 0:01:59]}
f6 {[%emt 0:10:30]} 29. f5 {[%emt 0:01:58]} Kf7 {[%emt 0:04:51]} 30. Ke3 {
[%emt 0:03:58]} Re8 {[%emt 0:02:01]} 31. Kf4 {[%emt 0:02:17]} Rd8 {[%emt 0:05:
07]} 32. Ke3 {[%emt 0:03:32]} Ke7 {[%emt 0:00:51]} 33. h4 {[%emt 0:01:29]} gxf5
{[%emt 0:00:25]} 34. exf5 {[%emt 0:01:17]} h5 {[%emt 0:00:40]} 35. gxh5 {[%emt
0:01:25]} Bxf5 {[%emt 0:00:16]} 36. Bf3 {[%emt 0:00:35]} Rd4 {[%emt 0:00:54]}
37. Rg2 {[%emt 0:01:31]} Rxh4 {[%emt 0:00:37]} 38. Rg7+ {[%emt 0:00:32]} Kd6 {
[%emt 0:00:23]} 39. Rxb7 {[%emt 0:01:01]} Ra1 {[%emt 0:01:56]} 40. Rf7 {[%emt
0:00:00]} Ke5 {[%emt 0:00:00]} 41. Re7+ {[%emt 0:04:17]} Be6 {[%emt 0:08:29]}
42. Kf2 {[%emt 0:02:30]} Ra2+ {[%emt 0:00:00]} 43. Kg1 {[%emt 0:01:30]} Kd4 {
[%emt 0:03:00]} 44. Rc1 {[%emt 0:01:30]} Rf4 {[%emt 0:03:30]} 45. Rxe6 {[%emt
0:07:52]} Rxf3 {[%emt 0:00:00]} 46. Rxc6 {[%emt 0:02:26]} f5 {[%emt 0:04:00]}
47. Rd1+ {[%emt 0:04:14]} Ke4 {[%emt 0:00:30]} 48. Rxc5 {[%emt 0:00:23]} Rg3+ {
[%emt 0:00:30]} 49. Kf1 {[%emt 0:05:50]} f4 {[%emt 0:04:56]} 50. Rcd5 {[%emt 0:
02:06]} Rxb3 {[%emt 0:03:29]} 51. h6 {[%emt 0:01:50]} Rh2 {[%emt 0:00:09]} 52.
R5d2 {[%emt 0:01:07]} Rxh6 {[%emt 0:01:09]} 53. Rd4+ {[%emt 0:02:15]} Ke3 {
[%emt 0:02:39]} 54. Rd8 {[%emt 0:00:38]} Rc3 {[%emt 0:02:14]} 55. R8d4 {[%emt
0:00:43]} f3 {[%emt 0:05:00]} 56. Kg1 {[%emt 0:00:56]} f2+ {[%emt 0:00:58]} 57.
Kf1 {[%emt 0:00:33]} Rh1+ {[%emt 0:00:10]} 58. Kg2 {[%emt 0:00:09]} Rg1+ {
[%emt 0:00:03]} 0-1

[Event "Wch u20 girls"]
[Site "Kocaeli"]
[Date "2013.09.23"]
[Round "10.24"]
[White "Monnisha, Gk"]
[Black "Armas, Lena"]
[Result "1-0"]
[ECO "B01"]
[WhiteElo "2094"]
[BlackElo "1920"]
[PlyCount "63"]
[EventDate "2013.09.??"]
[EventType "swiss"]
[EventRounds "13"]
[EventCountry "TUR"]
[Source "CBase R.Goldau"]
[SourceDate "2000.03.01"]
[TimeControl "40/5400+30:1800+30"]

1. e4 {[%emt 0:00:30]} d5 {[%emt 0:00:30]} 2. exd5 {[%emt 0:00:30]} Qxd5 {
[%emt 0:00:00]} 3. Nc3 {[%emt 0:00:00]} Qd6 {[%emt 0:00:00]} 4. d4 {[%emt 0:00:
00]} Nf6 {[%emt 0:00:00]} 5. Bc4 {[%emt 0:00:30]} a6 {[%emt 0:01:00]} 6. a4 {
[%emt 0:00:30]} Nc6 {[%emt 0:03:30]} 7. Nge2 {[%emt 0:01:30]} e5 {[%emt 0:02:
30]} 8. d5 {[%emt 0:11:30]} Ne7 {[%emt 0:15:30]} 9. b3 {[%emt 0:03:30]} Bf5 {
[%emt 0:02:30]} 10. Ng3 {[%emt 0:17:30]} Bg6 {[%emt 0:01:30]} 11. Ba3 {[%emt 0:
04:30]} c5 {[%emt 0:11:30]} 12. Qd2 {[%emt 0:11:30]} Rd8 {[%emt 0:04:30]} 13.
O-O-O {[%emt 0:00:30]} Nf5 {[%emt 0:05:30]} 14. Nxf5 {[%emt 0:03:30]} Bxf5 {
[%emt 0:00:00]} 15. f3 {[%emt 0:00:30]} g6 {[%emt 0:13:00]} 16. Kb1 {[%emt 0:
02:30]} Bg7 {[%emt 0:00:30]} 17. g4 {[%emt 0:01:30]} Bd7 {[%emt 0:01:30]} 18.
g5 {[%emt 0:00:30]} Nh5 {[%emt 0:01:30]} 19. Ne4 {[%emt 0:00:30]} Qc7 {[%emt 0:
03:30]} 20. Bxc5 {[%emt 0:06:30]} b6 {[%emt 0:02:30]} 21. Ba3 {[%emt 0:01:30]}
Bxa4 {[%emt 0:05:30]} 22. d6 {[%emt 0:04:30]} Qd7 {[%emt 0:10:53]} 23. bxa4 {
[%emt 0:00:00]} O-O {[%emt 0:03:06]} 24. Bb3 {[%emt 0:00:00]} a5 {[%emt 0:01:
30]} 25. Qd5 {[%emt 0:02:30]} Kh8 {[%emt 0:04:13]} 26. Qb5 {[%emt 0:00:00]} f5
{[%emt 0:00:32]} 27. gxf6 {[%emt 0:00:00]} Nxf6 {[%emt 0:00:14]} 28. Nxf6 {
[%emt 0:00:30]} Rxf6 {[%emt 0:00:22]} 29. Qxd7 {[%emt 0:02:30]} Rxd7 {[%emt 0:
00:01]} 30. Rhe1 {[%emt 0:00:30]} Rxf3 {[%emt 0:02:01]} 31. Rf1 {[%emt 0:00:30]
} Rc3 {[%emt 0:03:12]} 32. Ka2 {[%emt 0:01:30]} 1-0

[Event "Wch u20 girls"]
[Site "Kocaeli"]
[Date "2013.09.23"]
[Round "10.25"]
[White "Kuchava, Ana"]
[Black "Urbonaviciute, Zivile"]
[Result "1-0"]
[ECO "D47"]
[WhiteElo "2092"]
[BlackElo "1826"]
[PlyCount "105"]
[EventDate "2013.09.??"]
[EventType "swiss"]
[EventRounds "13"]
[EventCountry "TUR"]
[Source "CBase R.Goldau"]
[SourceDate "2000.03.01"]
[TimeControl "40/5400+30:1800+30"]

1. d4 {[%emt 0:00:30]} d5 {[%emt 0:00:30]} 2. Nf3 {[%emt 0:00:00]} Nf6 {[%emt
0:00:00]} 3. c4 {[%emt 0:00:00]} c6 {[%emt 0:00:00]} 4. Nc3 {[%emt 0:00:30]} e6
{[%emt 0:00:30]} 5. e3 {[%emt 0:00:30]} Nbd7 {[%emt 0:00:30]} 6. Bd3 {[%emt 0:
00:00]} Be7 {[%emt 0:00:30]} 7. O-O {[%emt 0:01:00]} dxc4 {[%emt 0:07:30]} 8.
Bxc4 {[%emt 0:00:30]} b5 {[%emt 0:00:30]} 9. Bd3 {[%emt 0:00:30]} a6 {[%emt 0:
01:30]} 10. e4 {[%emt 0:10:30]} c5 {[%emt 0:02:30]} 11. e5 {[%emt 0:05:30]} Nd5
{[%emt 0:02:30]} 12. Nxd5 {[%emt 0:01:30]} exd5 {[%emt 0:00:30]} 13. Re1 {
[%emt 0:02:30]} O-O {[%emt 0:02:30]} 14. Bb1 {[%emt 0:02:30]} Re8 {[%emt 0:06:
30]} 15. dxc5 {[%emt 0:06:30]} Nxc5 {[%emt 0:03:30]} 16. Nd4 {[%emt 0:00:30]}
Bf8 {[%emt 0:06:30]} 17. f4 {[%emt 0:16:30]} g6 {[%emt 0:11:30]} 18. Kh1 {
[%emt 0:01:30]} Qh4 {[%emt 0:02:30]} 19. Nf3 {[%emt 0:07:30]} Qd8 {[%emt 0:08:
30]} 20. Be3 {[%emt 0:01:30]} Ne4 {[%emt 0:04:30]} 21. Bd4 {[%emt 0:02:30]} Bh6
{[%emt 0:00:30]} 22. g3 {[%emt 0:06:30]} Bb7 {[%emt 0:02:30]} 23. Nd2 {[%emt 0:
04:30]} f5 {[%emt 0:03:30]} 24. exf6 {[%emt 0:01:30]} Nxf6 {[%emt 0:02:30]} 25.
Rxe8+ {[%emt 0:00:30]} Nxe8 {[%emt 0:00:30]} 26. Nf3 {[%emt 0:02:30]} Nd6 {
[%emt 0:02:30]} 27. Ne5 {[%emt 0:01:30]} Ne4 {[%emt 0:01:30]} 28. Kg2 {[%emt 0:
05:40]} Bg7 {[%emt 0:07:30]} 29. Bd3 {[%emt 0:05:13]} Rc8 {[%emt 0:03:29]} 30.
Rc1 {[%emt 0:06:03]} Nd6 {[%emt 0:03:55]} 31. h4 {[%emt 0:03:09]} Nc4 {[%emt 0:
06:47]} 32. b3 {[%emt 0:01:50]} Nxe5 {[%emt 0:00:41]} 33. fxe5 {[%emt 0:00:10]}
Qe7 {[%emt 0:00:23]} 34. Rxc8+ {[%emt 0:01:14]} Bxc8 {[%emt 0:00:05]} 35. Qc1 {
[%emt 0:02:34]} Qe6 {[%emt 0:00:40]} 36. Qf4 {[%emt 0:00:16]} Bd7 {[%emt 0:01:
56]} 37. Qg5 {[%emt 0:01:22]} Qh3+ {[%emt 0:02:54]} 38. Kg1 {[%emt 0:00:11]}
Qe6 {[%emt 0:01:02]} 39. h5 {[%emt 0:00:51]} gxh5 {[%emt 0:01:27]} 40. Qxh5 {
[%emt 0:00:00]} Bh6 {[%emt 0:00:00]} 41. Kh2 {[%emt 0:08:27]} Bc8 {[%emt 0:07:
11]} 42. g4 {[%emt 0:03:30]} Bf4+ {[%emt 0:05:30]} 43. Kh3 {[%emt 0:00:30]} Qe7
{[%emt 0:01:30]} 44. b4 {[%emt 0:05:54]} Be6 {[%emt 0:01:26]} 45. Bf5 {[%emt 0:
06:26]} Qd7 {[%emt 0:05:54]} 46. Kg2 {[%emt 0:04:33]} Qf7 {[%emt 0:06:03]} 47.
Qh4 {[%emt 0:04:24]} h6 {[%emt 0:06:27]} 48. Qd8+ {[%emt 0:00:54]} Kg7 {[%emt
0:00:05]} 49. Qb6 {[%emt 0:00:26]} Be3 {[%emt 0:02:07]} 50. Bxe3 {[%emt 0:00:
42]} Bxf5 {[%emt 0:00:05]} 51. Qxh6+ {[%emt 0:00:26]} Kg8 {[%emt 0:00:03]} 52.
gxf5 {[%emt 0:00:15]} Qxf5 {[%emt 0:00:31]} 53. Qg5+ {[%emt 0:00:16]} 1-0

[Event "Wch u20 girls"]
[Site "Kocaeli"]
[Date "2013.09.23"]
[Round "10.26"]
[White "Liu, Hongyan"]
[Black "Adanmis, Ezgi"]
[Result "1-0"]
[ECO "E11"]
[WhiteElo "2065"]
[BlackElo "1499"]
[PlyCount "67"]
[EventDate "2013.09.??"]
[EventType "swiss"]
[EventRounds "13"]
[EventCountry "TUR"]
[Source "CBase R.Goldau"]
[SourceDate "2000.03.01"]
[TimeControl "40/5400+30:1800+30"]

1. d4 {[%emt 0:00:30]} Nf6 {[%emt 0:00:30]} 2. c4 {[%emt 0:00:00]} e6 {[%emt 0:
00:00]} 3. g3 {[%emt 0:00:00]} Bb4+ {[%emt 0:01:00]} 4. Bd2 {[%emt 0:00:30]}
Qe7 {[%emt 0:02:30]} 5. Bg2 {[%emt 0:03:30]} O-O {[%emt 0:02:30]} 6. a3 {[%emt
0:07:30]} Bxd2+ {[%emt 0:00:30]} 7. Nxd2 {[%emt 0:01:30]} d5 {[%emt 0:04:30]}
8. Ngf3 {[%emt 0:01:30]} Nbd7 {[%emt 0:05:30]} 9. O-O {[%emt 0:01:30]} b6 {
[%emt 0:03:30]} 10. Rc1 {[%emt 0:03:30]} Bb7 {[%emt 0:00:30]} 11. cxd5 {[%emt
0:01:30]} Nxd5 {[%emt 0:10:30]} 12. e4 {[%emt 0:01:30]} N5f6 {[%emt 0:00:30]}
13. Rxc7 {[%emt 0:02:30]} Ba6 {[%emt 0:02:30]} 14. Re1 {[%emt 0:00:30]} Rfc8 {
[%emt 0:01:30]} 15. Rxc8+ {[%emt 0:02:30]} Rxc8 {[%emt 0:00:30]} 16. Qa4 {
[%emt 0:00:30]} Nb8 {[%emt 0:01:30]} 17. e5 {[%emt 0:17:30]} Nd5 {[%emt 0:05:
30]} 18. Ne4 {[%emt 0:00:30]} Rc4 {[%emt 0:03:30]} 19. Qd1 {[%emt 0:00:30]} Qc7
{[%emt 0:09:30]} 20. Nd6 {[%emt 0:10:30]} Rc6 {[%emt 0:03:30]} 21. Ng5 {[%emt
0:00:30]} Qe7 {[%emt 0:17:30]} 22. Bxd5 {[%emt 0:05:30]} exd5 {[%emt 0:03:50]}
23. e6 {[%emt 0:02:30]} f6 {[%emt 0:04:22]} 24. Ngf7 {[%emt 0:03:30]} Rxd6 {
[%emt 0:00:55]} 25. Nxd6 {[%emt 0:00:30]} Qxd6 {[%emt 0:00:04]} 26. e7 {[%emt
0:00:30]} Bb5 {[%emt 0:00:19]} 27. e8=Q+ {[%emt 0:02:30]} Bxe8 {[%emt 0:00:03]}
28. Rxe8+ {[%emt 0:00:30]} Kf7 {[%emt 0:00:06]} 29. Re1 {[%emt 0:00:00]} g6 {
[%emt 0:01:05]} 30. Qc1 {[%emt 0:01:00]} Kg7 {[%emt 0:01:31]} 31. Qc8 {[%emt 0:
00:30]} Nd7 {[%emt 0:03:58]} 32. Qd8 {[%emt 0:00:30]} Qc6 {[%emt 0:03:16]} 33.
Re7+ {[%emt 0:00:30]} Kh6 {[%emt 0:00:04]} 34. Qxd7 {[%emt 0:00:30]} 1-0

[Event "Wch u20 girls"]
[Site "Kocaeli"]
[Date "2013.09.23"]
[Round "10.27"]
[White "Savant, Riya"]
[Black "Krumova, Ani"]
[Result "1/2-1/2"]
[ECO "E60"]
[WhiteElo "1960"]
[BlackElo "1993"]
[PlyCount "64"]
[EventDate "2013.09.??"]
[EventType "swiss"]
[EventRounds "13"]
[EventCountry "TUR"]
[Source "CBase R.Goldau"]
[SourceDate "2000.03.01"]
[TimeControl "40/5400+30:1800+30"]

1. d4 {[%emt 0:00:30]} Nf6 {[%emt 0:00:30]} 2. c4 {[%emt 0:00:30]} g6 {[%emt 0:
00:00]} 3. g3 {[%emt 0:00:30]} Bg7 {[%emt 0:00:00]} 4. Bg2 {[%emt 0:00:00]} O-O
{[%emt 0:00:00]} 5. Nf3 {[%emt 0:01:00]} d6 {[%emt 0:00:00]} 6. O-O {[%emt 0:
00:00]} Na6 {[%emt 0:00:30]} 7. b3 {[%emt 0:02:00]} c5 {[%emt 0:00:30]} 8. Bb2
{[%emt 0:01:30]} Rb8 {[%emt 0:01:30]} 9. Nbd2 {[%emt 0:01:30]} cxd4 {[%emt 0:
01:30]} 10. Nxd4 {[%emt 0:04:30]} Nc5 {[%emt 0:01:30]} 11. b4 {[%emt 0:07:30]}
Ne6 {[%emt 0:00:30]} 12. Qa4 {[%emt 0:07:30]} a6 {[%emt 0:01:30]} 13. Nxe6 {
[%emt 0:06:30]} Bxe6 {[%emt 0:00:30]} 14. Rfd1 {[%emt 0:00:30]} Qc8 {[%emt 0:
04:30]} 15. Rac1 {[%emt 0:05:30]} Bh3 {[%emt 0:02:30]} 16. Bf3 {[%emt 0:09:30]}
Bg4 {[%emt 0:03:30]} 17. c5 {[%emt 0:05:30]} Bxf3 {[%emt 0:02:30]} 18. Nxf3 {
[%emt 0:09:30]} dxc5 {[%emt 0:05:30]} 19. Rxc5 {[%emt 0:03:30]} Qg4 {[%emt 0:
02:30]} 20. Qb3 {[%emt 0:05:30]} Rbd8 {[%emt 0:03:30]} 21. Rxd8 {[%emt 0:04:30]
} Rxd8 {[%emt 0:00:00]} 22. Ne5 {[%emt 0:04:21]} Qe6 {[%emt 0:06:00]} 23. Qxe6
{[%emt 0:02:23]} fxe6 {[%emt 0:00:30]} 24. Rc7 {[%emt 0:00:00]} b6 {[%emt 0:10:
30]} 25. Rxe7 {[%emt 0:03:01]} Rd2 {[%emt 0:01:30]} 26. Bc3 {[%emt 0:01:27]}
Rxe2 {[%emt 0:07:30]} 27. Rb7 {[%emt 0:08:12]} Nd7 {[%emt 0:07:30]} 28. Nxd7 {
[%emt 0:04:33]} Bxc3 {[%emt 0:00:30]} 29. Rxb6 {[%emt 0:00:41]} Rxa2 {[%emt 0:
00:30]} 30. Nc5 {[%emt 0:00:55]} Bd4 {[%emt 0:02:30]} 31. Rxe6 {[%emt 0:01:20]}
Rxf2 {[%emt 0:02:30]} 32. Kh1 {[%emt 0:00:20]} Bxc5 {[%emt 0:02:30]} 1/2-1/2

[Event "Wch u20 girls"]
[Site "Kocaeli"]
[Date "2013.09.23"]
[Round "10.29"]
[White "Edes, Zsofia"]
[Black "Anjana Krishna, S."]
[Result "1/2-1/2"]
[ECO "D36"]
[WhiteElo "2044"]
[BlackElo "1881"]
[PlyCount "50"]
[EventDate "2013.09.??"]
[EventType "swiss"]
[EventRounds "13"]
[EventCountry "TUR"]
[Source "CBase R.Goldau"]
[SourceDate "2000.03.01"]
[TimeControl "40/5400+30:1800+30"]

1. d4 {[%emt 0:01:30]} d5 {[%emt 0:00:30]} 2. c4 {[%emt 0:00:30]} e6 {[%emt 0:
00:30]} 3. Nc3 {[%emt 0:00:30]} Nf6 {[%emt 0:00:00]} 4. cxd5 {[%emt 0:00:00]}
exd5 {[%emt 0:00:00]} 5. Bg5 {[%emt 0:00:00]} Be7 {[%emt 0:00:30]} 6. e3 {
[%emt 0:01:30]} O-O {[%emt 0:01:30]} 7. Qc2 {[%emt 0:00:30]} c6 {[%emt 0:00:30]
} 8. Bd3 {[%emt 0:00:00]} Nbd7 {[%emt 0:01:30]} 9. Nge2 {[%emt 0:01:00]} Re8 {
[%emt 0:00:00]} 10. O-O {[%emt 0:00:30]} Nf8 {[%emt 0:00:00]} 11. Rae1 {[%emt
0:01:30]} Ng6 {[%emt 0:07:30]} 12. Ng3 {[%emt 0:26:30]} Ng4 {[%emt 0:11:30]}
13. Bxe7 {[%emt 0:01:30]} Rxe7 {[%emt 0:03:30]} 14. Nd1 {[%emt 0:08:30]} Re8 {
[%emt 0:12:30]} 15. f3 {[%emt 0:03:30]} Nxh2 {[%emt 0:13:30]} 16. Rf2 {[%emt 0:
07:30]} Qh4 {[%emt 0:02:30]} 17. Nf5 {[%emt 0:03:30]} Bxf5 {[%emt 0:04:30]} 18.
Bxf5 {[%emt 0:00:30]} Nf4 {[%emt 0:00:30]} 19. Qd2 {[%emt 0:12:30]} Qg3 {[%emt
0:05:30]} 20. Kh1 {[%emt 0:03:30]} Nh5 {[%emt 0:12:30]} 21. Nc3 {[%emt 0:08:24]
} Rad8 {[%emt 0:00:30]} 22. Kg1 {[%emt 0:03:32]} Nf4 {[%emt 0:03:41]} 23. Kh1 {
[%emt 0:01:14]} Nh5 {[%emt 0:01:44]} 24. Kg1 {[%emt 0:00:22]} Nf4 {[%emt 0:00:
10]} 25. Kh1 {[%emt 0:00:09]} Nh5 {[%emt 0:00:04]} 1/2-1/2

[Event "Wch u20 girls"]
[Site "Kocaeli"]
[Date "2013.09.23"]
[Round "10.30"]
[White "Aslan, Cagla Yaren"]
[Black "Leonardi, Caterina"]
[Result "0-1"]
[ECO "A05"]
[WhiteElo "1697"]
[BlackElo "1944"]
[PlyCount "68"]
[EventDate "2013.09.??"]
[EventType "swiss"]
[EventRounds "13"]
[EventCountry "TUR"]
[Source "CBase R.Goldau"]
[SourceDate "2000.03.01"]
[TimeControl "40/5400+30:1800+30"]

1. e4 {[%emt 0:00:30]} g6 {[%emt 0:00:30]} 2. g3 {[%emt 0:00:30]} Bg7 {[%emt 0:
00:30]} 3. Bg2 {[%emt 0:00:30]} c5 {[%emt 0:00:30]} 4. Nf3 {[%emt 0:00:30]} Nc6
{[%emt 0:00:30]} 5. d3 {[%emt 0:00:30]} d6 {[%emt 0:00:30]} 6. O-O {[%emt 0:00:
30]} Nf6 {[%emt 0:00:30]} 7. Nbd2 {[%emt 0:01:30]} O-O {[%emt 0:00:30]} 8. Nc4
{[%emt 0:02:30]} Bg4 {[%emt 0:05:30]} 9. Ne3 {[%emt 0:02:30]} Bd7 {[%emt 0:01:
30]} 10. h4 {[%emt 0:01:30]} b5 {[%emt 0:01:30]} 11. Nh2 {[%emt 0:02:30]} Rb8 {
[%emt 0:00:30]} 12. f4 {[%emt 0:08:30]} Qc8 {[%emt 0:03:30]} 13. f5 {[%emt 0:
03:30]} Ne5 {[%emt 0:01:30]} 14. g4 {[%emt 0:04:30]} Kh8 {[%emt 0:07:30]} 15.
g5 {[%emt 0:08:30]} Nh5 {[%emt 0:03:30]} 16. Nd5 {[%emt 0:04:30]} Qd8 {[%emt 0:
02:30]} 17. Qe1 {[%emt 0:06:30]} f6 {[%emt 0:00:30]} 18. Bh3 {[%emt 0:11:30]}
Bc6 {[%emt 0:05:30]} 19. Ng4 {[%emt 0:04:30]} fxg5 {[%emt 0:02:30]} 20. Bxg5 {
[%emt 0:03:30]} Bxd5 {[%emt 0:00:30]} 21. exd5 {[%emt 0:00:30]} Qe8 {[%emt 0:
04:30]} 22. c3 {[%emt 0:06:30]} Nxd3 {[%emt 0:03:30]} 23. Qe6 {[%emt 0:04:30]}
c4 {[%emt 0:03:30]} 24. Ne3 {[%emt 0:05:18]} h6 {[%emt 0:07:30]} 25. Bxe7 {
[%emt 0:00:39]} Nhf4 {[%emt 0:00:30]} 26. Qxd6 {[%emt 0:01:10]} Nxh3+ {[%emt 0:
01:30]} 27. Kg2 {[%emt 0:00:13]} Be5 {[%emt 0:03:30]} 28. Qa3 {[%emt 0:00:53]}
Nhf4+ {[%emt 0:06:30]} 29. Kg1 {[%emt 0:00:59]} gxf5 {[%emt 0:03:30]} 30. Bxf8
{[%emt 0:03:59]} Qg6+ {[%emt 0:00:30]} 31. Kh1 {[%emt 0:02:14]} Qg3 {[%emt 0:
00:30]} 32. Bg7+ {[%emt 0:00:14]} Kh7 {[%emt 0:01:30]} 33. Rae1 {[%emt 0:00:55]
} Qxh4+ {[%emt 0:02:30]} 34. Kg1 {[%emt 0:00:16]} Nh3+ {[%emt 0:00:30]} 0-1